[Event "Charlotte Summer IM C 2022"]
[Site "Charlotte"]
[Date "2022.07.26"]
[Round "3.1"]
[White "Rodrigue-Lemieux, Shawn"]
[Black "Huston, Gus"]
[Result "1-0"]
[ECO "A14"]
[WhiteElo "2366"]
[BlackElo "2282"]
[Annotator "TA"]
[PlyCount "129"]
[EventDate "2022.07.24"]
[EventType "tourn"]
[EventCountry "USA"]
[SourceTitle "playchess.com"]
[Source "ChessBase"]
[SourceQuality "1"]
[TimeControl "5400+30"]

{[%evp 19,129,0,0,-9,-9,0,-16,-23,-19,-30,-19,-24,0,-8,6,34,69,51,49,61,66,56,60,68,119,97,103,102,100,100,99,89,103,87,163,163,168,130,130,130,130,102,139,124,177,131,143,132,152,137,218,218,220,212,266,238,239,202,261,232,295,255,326,275,309,308,270,151,201,194,216,208,223,201,207,222,203,135,206,189,197,151,135,146,138,117,120,95,168,170,311,295,368,288,410,410,410,384,410,292,292,292,292,292,277,268,594,582,545,532,519,484]} 1. c4 {[%emt 0:00:01]} e6 {[%emt 0:03:31]} 2. g3 {[%emt 0:00:09]} d5 {[%emt 0:00:31]} 3. Bg2 {[%emt 0:00:05]} Nf6 {[%emt 0:00:07]} 4. Nf3 {[%emt 0:00:06]} Be7 {[%emt 0:00:39]} 5. O-O {[%emt 0:00:08]} O-O {[%emt 0:00:04]} 6. b3 {[%emt 0:00:12]} d4 {[%emt 0:00:03]} 7. Bb2 {[%emt 0:00:22]} c5 {[%emt 0:01:51]} 8. e3 {[%emt 0:00:20]} Nc6 {[%emt 0:00:06]} 9. exd4 {[%emt 0:00:07]} cxd4 {[%emt 0:00:04]} 10. Re1 {[%emt 0:00:09]} Re8 {[%emt 0:00:08] 10...Bc5 is the modern continuation.} 11. Ne5 {[%emt 0:03:10] A14: English Opening: 1...e6 with b3 by White.} Nxe5 {[%emt 0:00:07]} 12. Rxe5 {[%emt 0:00:04]} Nd7 {[%emt 0:00:10]} 13. Re1 {[%emt 0:03:50] The position is equal.} e5 {[%emt 0:00:24]} 14. d3 {[%emt 0:01:01]} Bb4 {[%emt 0:04:12]} 15. Re2 {[%emt 0:03:48]} Bf8 {[%emt 0:00:34]} 16. Qe1 {[%emt 0:07:09][%cal Ob2d4]} Qb6 {[%emt 0:03:37] [#]} 17. Nd2 $146 {[%emt 0:02:23]} ({Predecessor:} 17. Ba3 Qg6 18. f4 Bxa3 19. Nxa3 Nc5 20. Rxe5 Bd7 21. Nb5 Nxd3 22. Rxe8+ Rxe8 23. Qf1 Bg4 24. Nxd4 {0-1 (49) Sowul,B (2224)-Goluch,P (2418) Suwalki 2019}) 17... Nc5 {[%emt 0:07:18]} 18. Rxe5 {[%emt 0:09:54]} Rxe5 {[%emt 0:00:46]} 19. Qxe5 {[%emt 0:00:07]} Nxd3 {[%emt 0:00:04]} 20. Qxd4 {[%emt 0:00:21]} Nxb2 {[%emt 0:00:16]} 21. Qxb2 {[%emt 0:00:08]} Bc5 {[%emt 0:02:12]} ({Black should try} 21... Be6 $14) 22. Rf1 {[%emt 0:09:50]} Bf5 {[%emt 0:01:55] [#]} 23. Ne4 $1 {[%emt 0:03:30][%cal Bd2e4,Be4c3,Bc3d5][%mdl 32]} Bd4 {[%emt 0:00:35]} 24. Qd2 {[%emt 0:09:02]} Rd8 {[%emt 0:08:09]} 25. Nc3 {[%emt 0:03:30]} Qa5 {[%emt 0:15:18]} 26. Rd1 {[%emt 0:00:28] And now Nd5 would win.} Bb6 {[%emt 0:07:32] [#]} (26... Bf6 $16 27. Qe3 Rxd1+ 28. Nxd1 Qd8) 27. Qe2 $1 $18 {[%emt 0:10:35] Threatening mate with Rxd8+.} Be6 {[%emt 0:05:10]} 28. Nd5 {[%emt 0:00:37]} Bc5 {[%emt 0:02:00]} 29. Be4 $40 {[%emt 0:04:17][%cal Ob3b4][%mdl 128] White has strong attack.} Re8 {[%emt 0:06:25][%cal Oe6f5]} 30. Qc2 {[%emt 0:04:22]} h6 {[%emt 0:00:46]} 31. Kg2 {[%emt 0:03:17]} Bc8 {[%emt 0:02:54]} (31... Bxd5 $16 {keeps fighting.} 32. Rxd5 (32. cxd5 Qb6 $16) (32. Bxd5 Re7 $16) 32... Qc7) 32. a4 {[%emt 0:02:48]} (32. Bh7+ $18 Kh8 33. Bf5) 32... Bg4 $16 {[%emt 0:02:41]} 33. Bf3 {[%emt 0:02:01]} Bc8 {[%emt 0:00:02]} 34. h3 {[%emt 0:01:28]} Qd8 {[%emt 0:02:13]} (34... Bf8 $16 35. Qd3 Be6) 35. b4 $18 {[%emt 0:05:42]} Bf8 {[%emt 0:00:06]} 36. c5 {[%emt 0:00:43]} Qg5 {[%emt 0:00:38]} 37. Nf4 {[%emt 0:01:14]} Qf6 {[%emt 0:02:36]} 38. Bd5 {[%emt 0:03:33]} Re5 {[%emt 0:04:53]} 39. Qc4 {[%emt 0:00:54]} Qf5 {[%emt 0:02:18]} 40. Bf3 {[%emt 0:01:02] Rd8 is the strong threat.} Qg5 {[%emt 0:02:10] Against Rd8} 41. Rd5 {[%emt 0:00:57]} Rxd5 {[%emt 0:01:59]} 42. Bxd5 {[%emt 0:00:18]} (42. Qxd5 a5 $16) 42... Qf5 {[%emt 0:00:19]} 43. Be4 {[%emt 0:00:58]} (43. g4 $18 Qf6 44. Qe4) 43... Qd7 $16 {[%emt 0:02:35]} 44. b5 {[%emt 0:01:42][%cal Bb4b5,Bb5c6][%mdl 32]} g5 {[%emt 0:02:43]} 45. c6 {[%emt 0:00:06]} bxc6 {[%emt 0:00:02]} 46. bxc6 {[%emt 0:00:13]} Qd6 {[%emt 0:00:31]} 47. Nd5 {[%emt 0:00:55] Hoping for Qd4.} Qe5 {[%emt 0:02:05]} 48. Ne3 {[%emt 0:01:16] aiming for Bd5.} Kg7 {[%emt 0:03:05]} (48... Bc5 $16 49. Ng4 Bxg4 50. hxg4 Qe7) 49. Bd5 $18 {[%emt 0:04:06]} f5 {[%emt 0:01:17]} 50. Bf3 {[%emt 0:00:47]} ({White should play} 50. Qd3 $18) 50... Bd6 $16 {[%emt 0:00:55]} 51. Qd3 {[%emt 0:00:39] Black must now prevent Nc4.} Bc7 {[%emt 0:00:30]} 52. Nd5 {[%emt 0:01:08]} Bd6 {[%emt 0:00:01]} 53. Nc3 {[%emt 0:00:17]} a6 {[%emt 0:00:14]} (53... Bc5 $16 54. Nd5 Qb2) 54. Nd5 $18 {[%emt 0:00:08]} Bc5 {[%emt 0:03:06] Inhibits Nb6.} (54... Be6 $142 55. Nb6 Bc7) 55. Qc4 {[%emt 0:00:01]} Ba7 {[%emt 0:00:01]} 56. c7 {[%emt 0:00:39]} Qb2 {[%emt 0:02:35]} (56... a5 $142 57. g4 fxg4 58. Bxg4 (58. hxg4 Qb2 $18) 58... Bb7) 57. Qe2 {[%emt 0:01:45] Active counter play!} Qxe2 {[%emt 0:00:04]} 58. Bxe2 {[%emt 0:00:01][%mdl 4096] Endgame KBB-KBN} Bb7 {[%emt 0:00:01]} 59. Bf3 {[%emt 0:00:59]} g4 {[%emt 0:01:32]} 60. hxg4 {[%emt 0:00:01]} fxg4 {[%emt 0:00:01]} 61. Be4 {[%emt 0:00:01] Threatens to win with a5.} ({Weaker is} 61. Bxg4 Bxd5+ 62. Kh3 Bb7 $16) 61... Bc5 {[%emt 0:00:01]} 62. Kg1 {[%emt 0:01:02][%cal Od5e7] Strongly threatening Ne7!} Kf7 {[%emt 0:01:50] [#] Prevents Ne7.} (62... Bc8 63. a5 Bd6) 63. Ne7 $1 {[%emt 0:00:32][%mdl 512] White is clearly winning.} Bd6 64. Bxb7 {[%emt 0:00:44]} Bxc7 {[%emt 0:01:58]} 65. Nd5 {Weighted Error Value: White=0.17 (very precise) /Black=0.30} 1-0

[Event "Charlotte Summer IM C 2022"]
[Site "Charlotte"]
[Date "2022.07.26"]
[Round "3.2"]
[White "Luo, Terry"]
[Black "Venkat, Raghav"]
[Result "1/2-1/2"]
[ECO "E02"]
[WhiteElo "2204"]
[BlackElo "2227"]
[Annotator "TA"]
[PlyCount "56"]
[EventDate "2022.07.24"]
[EventType "tourn"]
[EventCountry "USA"]
[SourceTitle "playchess.com"]
[Source "ChessBase"]
[SourceQuality "1"]
[TimeControl "5400+30"]

{[%evp 12,56,37,27,43,41,41,48,59,48,48,54,54,28,43,6,13,4,6,0,12,8,5,1,8,4,0,0,5,6,13,4,8,0,0,0,0,0,0,0,0,0,0,0,0,0,0]} 1. d4 {[%emt 0:00:01]} Nf6 {[%emt 0:02:46]} 2. c4 {[%emt 0:00:05]} e6 {[%emt 0:00:13]} 3. g3 {[%emt 0:00:03]} d5 {[%emt 0:00:07]} 4. Bg2 {[%emt 0:00:04]} dxc4 {[%emt 0:01:59]} 5. Nf3 {[%emt 0:00:12]} Nc6 {[%emt 0:00:22]} 6. Qa4 {[%emt 0:00:14]} Bd7 {[%emt 0:01:33]} 7. Qxc4 {[%emt 0:00:59]} Bd6 {[%emt 0:00:43] E02: Open Catalan: 5 Qa4+.} 8. O-O {[%emt 0:01:24]} O-O {[%emt 0:00:06]} 9. Nc3 {[%emt 0:01:49]} a6 {[%emt 0:03:19] White is slightly better.} 10. Bg5 {[%emt 0:06:58]} h6 {[%emt 0:00:39]} 11. Bxf6 {[%emt 0:00:23]} Qxf6 {[%emt 0:00:08]} 12. Ne4 {[%emt 0:00:19]} Qe7 {[%emt 0:00:34]} 13. Nxd6 {[%emt 0:00:07]} cxd6 {[%emt 0:01:27] The position is equal.} 14. Rac1 {[%emt 0:06:34]} Rfc8 {[%emt 0:00:36] [#]} 15. Qb3 $146 {[%emt 0:01:07]} ({Predecessor:} 15. Qd3 Nb4 16. Qd2 Nd5 17. Rxc8+ Rxc8 18. Rc1 Bc6 19. Ne1 Nf6 20. Nd3 Qd7 21. Bxc6 Rxc6 22. Rxc6 Qxc6 {0-1 (52) Topp,M-Winterstein,H Hamburg 1997}) 15... Rab8 {[%emt 0:03:42]} 16. e4 {[%emt 0:04:35]} d5 {[%emt 0:12:32]} 17. exd5 {[%emt 0:04:40]} exd5 {[%emt 0:00:03]} 18. a3 {[%emt 0:02:36]} Be6 {[%emt 0:01:46]} 19. Rfe1 {[%emt 0:03:26]} Qf6 {[%emt 0:03:52]} 20. Qe3 {[%emt 0:10:41]} Qd8 {[%emt 0:06:20]} 21. Ne5 {[%emt 0:29:24]} Qb6 {[%emt 0:04:53][%csl LRb2,LRd4]} 22. Nxc6 {[%emt 0:00:33]} Rxc6 {[%emt 0:01:54]} 23. Qe5 {[%emt 0:05:59]} Rbc8 {[%emt 0:02:10]} 24. Rxc6 {[%emt 0:00:07]} Qxc6 {[%emt 0:00:21]} 25. h4 {[%emt 0:00:39]} Qb5 {[%emt 0:02:25]} 26. b4 {[%emt 0:03:47]} Rc3 {[%emt 0:07:59]} 27. Re3 {[%emt 0:00:33]} Rc1+ {[%emt 0:01:29]} 28. Re1 {[%emt 0:00:06]} Rc3 {[%emt 0:01:23] Weighted Error Value: White=0.05 (flawless) /Black=0.04 (flawless)} 1/2-1/2

[Event "Charlotte Summer IM C 2022"]
[Site "Charlotte"]
[Date "2022.07.26"]
[Round "3.3"]
[White "Xie, Bryan"]
[Black "Wen, Tommy"]
[Result "0-1"]
[ECO "B42"]
[WhiteElo "2191"]
[BlackElo "2040"]
[Annotator "TA"]
[PlyCount "84"]
[EventDate "2022.07.24"]
[EventType "tourn"]
[EventCountry "USA"]
[SourceTitle "playchess.com"]
[Source "ChessBase"]
[SourceQuality "1"]
[TimeControl "5400+30"]

{[%evp 12,84,25,31,38,37,31,25,30,-21,-10,-12,-17,-16,-18,-61,-39,-301,-220,-343,-339,-494,-370,-447,-345,-334,-345,-350,-349,-324,-343,-332,-334,-354,-343,-327,-353,-343,-340,-363,-360,-387,-375,-381,-383,-360,-331,-420,-427,-410,-412,-397,-399,-591,-592,-671,-682,-615,-606,-828,-833,-900,-887,-804,-787,-29957,-29956,-12821,-9575,-10026,-6901,-29980,-29981,-29981,-29982]} 1. e4 {[%emt 0:00:09]} c5 {[%emt 0:00:06]} 2. Nf3 {[%emt 0:00:08]} e6 {[%emt 0:00:04]} 3. d4 {[%emt 0:00:13]} cxd4 {[%emt 0:00:05]} 4. Nxd4 {[%emt 0:00:07]} a6 {[%emt 0:00:04]} 5. Bd3 {[%emt 0:00:16]} Bc5 {[%emt 0:00:06]} 6. Nb3 {[%emt 0:00:34]} Ba7 {[%emt 0:00:06]} 7. Qe2 {[%emt 0:00:21]} Ne7 {[%emt 0:00:18] B42: Sicilian: Kan Variation: 5 Bd3.} 8. Be3 {[%emt 0:00:28]} O-O {[%emt 0:00:26]} 9. Nc3 {[%emt 0:00:16] 9.Bxa7 is a critical line.} b5 {[%emt 0:00:24][%cal Bb7b5,Bb5b4][%mdl 32] [#] White has an edge.} 10. O-O-O $146 {[%emt 0:00:37]} (10. Bxa7 $142 Rxa7 11. e5) ({Predecessor:} 10. O-O Nbc6 11. f4 d6 12. a3 Qc7 13. Rad1 Rb8 14. Bxa7 Qxa7+ 15. Qf2 Qc7 16. f5 {0-1 (49) Charmeteau,S (2310)-Harsha,B (2547) Paris 2022}) 10... b4 $11 {[%emt 0:00:30]} 11. Na4 {[%emt 0:02:16]} d6 {[%emt 0:00:53] [#] aiming for ...Bd7.} 12. e5 {[%emt 0:05:29] Black must now prevent Bg5.} d5 {[%emt 0:08:24]} 13. Bg5 {[%emt 0:11:58]} Qc7 $1 {[%emt 0:10:53]} 14. Bxh7+ $2 {[%emt 0:08:43][%mdl 8192]} Kxh7 $19 {[%emt 0:00:53]} 15. Rd3 {[%emt 0:00:48] [#]} (15. Qh5+ $142 Kg8 16. Bxe7 Qxe7 17. Rd3) 15... Rh8 $1 {[%emt 0:17:40]} ({Less strong is} 15... Kg8 16. Rh3 Nd7 17. Bxe7 Qxe5 18. Qxe5 (18. Qd3 f6 $16) 18... Nxe5 19. Bxf8 (19. Bxb4 Re8 $14) 19... Kxf8 20. Rh8+ Ke7 21. Nac5 $16) 16. h4 {[%emt 0:06:50]} (16. Rh3+ $142 Kg8 17. Rxh8+ Kxh8 18. h4) 16... Nbc6 {[%emt 0:06:58]} ({Wrong is} 16... Kg8 $2 17. h5 $19) 17. h5 {[%emt 0:00:22]} Qxe5 {[%emt 0:10:08]} 18. Qxe5 {[%emt 0:00:16]} Nxe5 {[%emt 0:00:03]} 19. Bxe7 {[%emt 0:00:10]} Nxd3+ {[%emt 0:00:02]} 20. cxd3 {[%emt 0:00:01]} Bxf2 {[%emt 0:04:22]} 21. Bxb4 {[%emt 0:00:06]} e5 {[%emt 0:03:05]} 22. Rf1 {[%emt 0:01:48]} Be3+ {[%emt 0:00:08]} 23. Bd2 {[%emt 0:00:02]} Bxd2+ {[%emt 0:00:07]} 24. Kxd2 {[%emt 0:00:01]} f6 {[%emt 0:03:29]} 25. h6 {[%emt 0:01:45]} d4 {[%emt 0:01:49]} ({Don't blunder} 25... gxh6 $2 26. Rxf6 Rg8 27. Rf7+ Kg6 28. Rf2 $19) 26. Nbc5 {[%emt 0:03:29]} Rb8 {[%emt 0:04:27]} 27. b3 {[%emt 0:00:06]} a5 {[%emt 0:02:00]} 28. Nb2 {[%emt 0:00:36]} Bb7 {[%emt 0:02:37]} 29. Nxb7 {[%emt 0:01:19]} Rxb7 {[%emt 0:00:09][%mdl 4096] Endgame KRR-KRN} 30. Nc4 {[%emt 0:00:10]} Ra8 {[%emt 0:01:18]} 31. hxg7 {[%emt 0:00:35]} Kxg7 {[%emt 0:04:05]} 32. g4 {[%emt 0:09:32]} (32. Kc2 {was called for.}) 32... a4 {[%emt 0:02:40]} 33. bxa4 {[%emt 0:47:29]} Rxa4 {[%emt 0:00:04]} 34. a3 {[%emt 0:00:00]} Rb3 {[%emt 0:03:35]} 35. Re1 {[%emt 0:00:00]} Kg6 {[%emt 0:00:56]} 36. Kc2 {[%emt 0:00:00]} Rc3+ {[%emt 0:00:45]} 37. Kd2 {[%emt 0:00:00]} Kg5 {[%emt 0:02:55]} 38. Re4 {[%emt 0:00:00]} Rcxc4 {[%emt 0:12:56]} 39. dxc4 {[%emt 0:00:00]} Rxa3 {[%emt 0:00:00] ( -> ...Rc3)} 40. Re1 {[%emt 0:00:00]} Rc3 {[%emt 0:00:00]} 41. Rc1 {[%emt 0:00:00]} Rxc1 {[%emt 0:00:00]} 42. Kxc1 {[%emt 0:00:00]} Kxg4 {[%emt 0:00:00] White did not feel at home in the position after the opening.  Weighted Error Value: White=0.97/Black=0.06 (flawless)} 0-1

[Event "Charlotte Summer IM C 2022"]
[Site "Charlotte"]
[Date "2022.07.26"]
[Round "3.4"]
[White "Adewumi, Tanitoluwa"]
[Black "Rodriguez Rivera, Pedro"]
[Result "0-1"]
[ECO "B51"]
[WhiteElo "2309"]
[BlackElo "2192"]
[Annotator "TA"]
[PlyCount "208"]
[EventDate "2022.07.24"]
[EventType "tourn"]
[EventCountry "USA"]
[SourceTitle "playchess.com"]
[Source "ChessBase"]
[SourceQuality "1"]
[TimeControl "5400+30"]

{[%evp 9,208,18,37,36,46,46,64,45,104,100,111,36,64,31,37,6,22,0,29,3,24,11,19,16,27,22,42,14,57,53,63,63,66,29,29,33,33,33,33,33,33,33,33,33,66,66,81,24,66,48,68,0,0,-6,0,-28,-28,-29,-10,-42,-42,-99,-108,-108,-89,-90,-86,-101,-91,-100,-98,-101,-102,-102,-102,-136,-150,-220,-71,-359,-67,-70,-66,-59,-60,-58,-66,-58,0,0,0,-64,0,-38,-69,-72,-45,-133,-147,-189,-75,-150,-140,-152,93,-145,0,-235,0,-116,0,-53,0,-61,0,0,0,-51,0,-39,0,0,0,0,0,0,12843,12843,12844,12844,12845,0,12846,0,0,0,0,0,0,0,0,0,0,0,0,0,0,-27998,-27981,-27982,-27982,-27983,-27982,-27983,-27982,-27983,-27981,-27982,-27982,-27987,-27987,-27988,-27988,-27989,-27987,-27988,-27988,-27989,-27988,-27989,-27989,-27991,-27991,-27992,-27992,-27995,-27995,-27996,-27994,-27995,-27992,-27993,-27993,-27994,-27993,-27995,-27995,-27997,-27995,-27997,-27996,-27997,-27995,-27996,-27996,-27997,-27997,-27998,-27998,-27999,-27999]} 1. e4 {[%emt 0:00:03]} c5 {[%emt 0:02:09]} 2. Nf3 {[%emt 0:00:07]} d6 {[%emt 0:00:01]} 3. Bb5+ {[%emt 0:00:14]} Nd7 {[%emt 0:00:20]} 4. c3 {[%emt 0:00:06]} a6 {[%emt 0:00:14]} 5. Bd3 {[%emt 0:00:05]} g6 {[%emt 0:01:40]} 6. Bc2 {[%emt 0:00:04] B51: Sicilian: Moscow Variation (3 Bb5+) without 3...Bd7.} Bg7 {[%emt 0:00:40]} 7. d4 {[%emt 0:00:05] [#]} e5 $146 {[%emt 0:02:12]} ({Predecessor:} 7... Qc7 8. O-O Ngf6 9. a4 O-O 10. h3 b6 11. Re1 e5 12. d5 Nh5 13. g3 Rb8 {0-1 (50) Anton Guijarro,D (2642)-Mamedov,R (2703) St Petersburg 2018}) 8. O-O {[%emt 0:00:09] White is slightly better.} Ne7 {[%emt 0:01:57]} (8... Qc7 $14) 9. dxe5 $1 $16 {[%emt 0:01:14]} dxe5 {[%emt 0:00:25]} 10. Bg5 {[%emt 0:00:04]} (10. a4 $16) 10... h6 {[%emt 0:01:00]} 11. Bxe7 {[%emt 0:00:16]} Qxe7 {[%emt 0:00:05]} 12. c4 {[%emt 0:00:14]} Nb6 {[%emt 0:01:08]} 13. Nc3 {[%emt 0:05:36]} O-O {[%emt 0:09:11]} (13... Nxc4 $5 {[%cal Rc8e6]} 14. Ba4+ Kf8 $11) 14. Nd5 {[%emt 0:00:36]} Qd6 {[%emt 0:02:20]} 15. Bd3 {[%emt 0:03:39]} Nxd5 {[%emt 0:05:24]} 16. cxd5 {[%emt 0:00:37]} b5 {[%emt 0:00:30]} 17. b3 {[%emt 0:01:09] Inhibits c4.} Bd7 {[%emt 0:01:00]} 18. Qe2 {[%emt 0:00:35]} Bg4 {[%emt 0:08:59]} 19. Rfc1 {[%emt 0:03:22]} Rfc8 {[%emt 0:01:21]} 20. a4 {[%emt 0:01:27]} b4 {[%emt 0:00:28]} 21. a5 {[%emt 0:00:17]} Qf6 {[%emt 0:02:55]} 22. Rc2 {[%emt 0:01:52]} Bf8 {[%emt 0:00:36]} 23. h3 {[%emt 0:02:13]} Bxf3 {[%emt 0:00:16]} 24. Qxf3 {[%emt 0:00:07]} Qxf3 {[%emt 0:00:16]} 25. gxf3 {[%emt 0:00:06][%cal Of3f4]} Bd6 {[%emt 0:00:40]} 26. Re1 {[%emt 0:00:07][%cal Of3f4]} g5 {[%emt 0:00:11]} 27. h4 {[%emt 0:00:28]} Kg7 {[%emt 0:00:26]} 28. Bf1 {[%emt 0:00:18]} ({Better is} 28. hxg5 $16 hxg5 29. Kg2) 28... Kf6 {[%emt 0:58:06]} 29. hxg5+ {[%emt 0:00:31]} hxg5 {[%emt 0:00:00]} 30. Bh3 {[%emt 0:00:08]} (30. Kg2 $14) 30... Rh8 $11 {[%emt 0:00:00]} 31. Bg2 {[%emt 0:01:56]} Rag8 {[%emt 0:00:00]} 32. Re3 {[%emt 0:04:02]} Rh4 {[%emt 0:00:00]} 33. Kf1 {[%emt 0:01:36]} g4 {[%emt 0:00:00]} 34. fxg4 {[%emt 0:03:51]} Rhxg4 {[%emt 0:00:00]} 35. Bf3 {[%emt 0:07:47]} (35. f3 $1 $15 Rg3 36. Ree2) 35... Rg1+ $17 {[%emt 0:00:00]} 36. Ke2 {[%emt 0:00:06]} Ke7 {[%emt 0:00:00] Black is more active.} 37. Kd3 {[%emt 0:02:25]} Ra1 {[%emt 0:00:00]} 38. Bh5 {[%emt 0:02:51]} Rg5 {[%emt 0:00:00]} 39. Be2 {[%emt 0:00:47]} Rxa5 {[%emt 0:00:00]} 40. Rh3 {[%emt 0:00:14]} Ra3 {[%emt 0:00:00]} 41. Kc4 {[%emt 0:01:45]} Rg2 {[%emt 0:00:00]} 42. Rh8 {[%emt 0:03:16]} Rxf2 {[%emt 0:00:00]} 43. Ra8 {[%emt 0:00:29]} (43. Bd3 $17 {was worth a try.} Rf3 44. Rg8) 43... Rf4 {[%emt 0:00:00]} (43... f5 $19 {And now ...Rf4 would win.} 44. Ra7+ Kd8) 44. Bd3 $2 {[%emt 0:00:51][%mdl 8192]} (44. Ra7+ $17 Ke8 45. Bd3) 44... Ra1 $2 {[%emt 0:00:00]} (44... f5 $1 $19 {[%cal Rf5e4]} 45. Ra7+ Kf6) 45. Ra7+ $15 {[%emt 0:00:14]} Kf8 {[%emt 0:00:00] White must now prevent ...Rf3.} 46. Ra8+ $1 {[%emt 0:02:41]} Kg7 $1 {[%emt 0:00:00] Strongly threatening ...Kf6.} 47. Rd8 $1 {[%emt 0:02:31]} Rf6 {[%emt 0:00:00]} 48. Rg2+ {[%emt 0:02:16]} Kh7 {[%emt 0:00:00]} (48... Rg6 $1 $15 49. Rxg6+ fxg6 50. Rd7+ (50. Rxd6 $2 Rc1+ 51. Bc2 Rxc2+ 52. Kd3 Rc3+ 53. Ke2 Rxb3 $19) 50... Kf8) 49. Rh2+ {[%emt 0:00:10]} (49. Be2 $11) 49... Kg7 {[%emt 0:00:00]} 50. Rg2+ {[%emt 0:00:13]} Kh7 {[%emt 0:00:00]} (50... Rg6 $1 $15 51. Rxg6+ fxg6 52. Rd7+ (52. Rxd6 $2 Rc1+ 53. Bc2 Rxc2+ 54. Kd3 Rc3+ 55. Kd2 Rxb3 $19) 52... Kf8) 51. Rxd6 {[%emt 0:08:09]} Rxd6 {[%emt 0:00:00]} 52. Kxc5 $11 {[%emt 0:00:17][%mdl 4096] Endgame KRR-KRB} Rd8 {[%emt 0:00:00]} 53. Bc4 {[%emt 0:02:05]} (53. Kc6 $15) 53... a5 $17 {[%emt 0:00:00]} 54. Rf2 {[%emt 0:01:43]} Rc8+ {[%emt 0:00:00]} (54... Kg6 $19 {has better winning chances.} 55. d6 Rc1 56. Rg2+ Kh6) 55. Kb5 {[%emt 0:02:02]} (55. Kb6 $142 Rd1 56. Rxf7+ Kg6 57. Rf2) 55... Rb8+ {[%emt 0:00:00]} 56. Kc6 {[%emt 0:04:01]} Rc8+ $2 {[%emt 0:00:00]} (56... a4 $1 $17 57. d6 a3) 57. Kb5 $2 {[%emt 0:18:23]} (57. Kd7 $1 $16 {[%cal Rd7c8] and life is bright.} Rxc4 58. bxc4) 57... Rb8+ {[%emt 0:00:00]} (57... a4 $1 $17 {[%cal Ra4b3]} 58. bxa4 Rc1) 58. Kc5 $2 {[%emt 0:04:51] [#]} (58. Kc6 $11 {and White stays safe.}) 58... Rc8+ $2 {[%emt 0:00:00]} ({Black should play} 58... a4 $1 $19 {Threatens to win with ...Rc1.} 59. Rxf7+ Kg6) 59. Kd6 {[%emt 0:01:01]} (59. Kb5 $1 $11 {was the only way to keep the balance.}) 59... Kg6 {[%emt 0:00:00]} (59... a4 $17 {Hoping for ...a3.} 60. Rh2+ Kg7 61. Rg2+ Kf6 62. Rf2+ Kg5 63. Kxe5 f6+ 64. Rxf6 axb3 65. Rf5+ Kh6 66. Bxb3 Rc3 67. Rf6+ Kg5) 60. Bb5 {[%emt 0:01:41]} (60. Kd7 $11 Rb8 61. d6) 60... Rc3 {[%emt 0:00:46]} (60... Rb1 $15 61. Ke7 Rc7+ 62. Kd6 Rb7) 61. Ba4 {[%emt 0:02:45]} (61. Be8 $11) 61... Rb1 {[%emt 0:07:02]} ({Of course not} 61... f6 62. Ke6 $14) (61... Re1 $15 62. Kxe5 Kg7 63. Rg2+ Kf8) 62. Ke7 {[%emt 0:03:31]} Rc7+ {[%emt 0:01:39]} 63. Kd6 {[%emt 0:00:33]} (63. Kd8 $11 Rc3 64. Ke7 Rc7+ 65. Kd8) 63... Rc3 {[%emt 0:00:02]} (63... Rbc1 $15) 64. Rd2 {[%emt 0:01:10]} Rbxb3 {[%emt 0:02:26]} (64... f6 $2 65. Ke6 $18) (64... Re1 $5 {[%cal Re1e4]} 65. Ke7 Rc7+ 66. Kd6 Rc3 $17) 65. Bxb3 {[%emt 0:00:18]} Rxb3 $15 {[%emt 0:00:01] KR-KR} 66. Ke7 {[%emt 0:00:27]} Rc3 {[%emt 0:00:31]} 67. d6 {[%emt 0:00:17]} b3 $2 {[%emt 0:00:36][%mdl 8192]} (67... Kg5 $11) 68. d7 $18 {[%emt 0:00:04]} Rc7 {[%emt 0:00:06]} 69. Ke8 {[%emt 0:01:06]} Rxd7 {[%emt 0:00:15] [#]} 70. Kxd7 $2 {[%emt 0:03:50] KR-KP} ({White has to play} 70. Rg2+ $1 $18 Kf6 71. Kxd7) 70... a4 $2 {[%emt 0:00:22][%mdl 8192]} (70... Kg5 $11) 71. Rd6+ $4 {[%emt 0:00:44][%mdl 8192]} (71. Rb2 $18 Kg5 72. Kc6) 71... Kg5 {[%emt 0:00:10]} 72. Rb6 {[%emt 0:00:26]} f5 {[%emt 0:01:00]} 73. exf5 {[%emt 0:01:01]} Kxf5 $11 {[%emt 0:07:34] KR-K3P} 74. Rb5 $2 {[%emt 0:00:44][%mdl 8192]} (74. Kd6 $11 e4 75. Rb5+ Kg4 76. Rb4) 74... Ke4 $2 {[%emt 0:00:00][%mdl 8192]} (74... a3 $11 75. Rxb3 e4) 75. Rb4+ $2 {[%emt 0:00:29][%mdl 8192]} (75. Kc6 $11) 75... Kd3 {[%emt 0:00:00]} 76. Rxa4 {[%emt 0:00:04] KR-KPP} b2 $2 {[%emt 0:01:30][%mdl 8192]} (76... Kc3 $11 77. Ra6 b2 78. Rc6+ Kd3) 77. Rb4 {[%emt 0:00:40]} Kc3 $2 {[%emt 0:00:00][%mdl 8192]} (77... Kc2 $11 78. Kc6 b1=Q 79. Rxb1 Kxb1) 78. Re4 $2 {[%mdl 8192]} (78. Rb6 $11) 78... b1=Q {[%emt 0:01:00] Black mates.} 79. Rxe5 {[%emt 0:01:48] KQ-KR} Kd4 {[%emt 0:00:00]} 80. Re6 {[%emt 0:00:00]} Qh7+ {[%emt 0:00:00]} 81. Kc6 {[%emt 0:01:00]} Qf7 {[%emt 0:00:00]} 82. Kd6 {[%emt 0:00:00]} Qa7 {[%emt 0:00:00]} 83. Kc6 {[%emt 0:00:00]} Qc5+ {[%emt 0:00:00]} 84. Kb7 {[%emt 0:00:00]} Kd5 {[%emt 0:00:00]} 85. Rb6 {[%emt 0:00:00]} Qe7+ {[%emt 0:00:00]} 86. Ka6 {[%emt 0:00:00]} Qd7 {[%emt 0:00:00]} 87. Rb5+ {[%emt 0:00:00]} Kc4 {[%emt 0:00:00]} 88. Rb1 {[%emt 0:00:24]} Qc6+ {[%emt 0:00:00]} 89. Ka7 {[%emt 0:00:11]} Qe4 {[%emt 0:00:00]} 90. Rb7 {[%emt 0:01:19]} Kc5 {[%emt 0:06:00]} 91. Rc7+ Kb5 {[%emt 0:00:00]} 92. Rf7 {[%emt 0:00:55]} Qd4+ {[%emt 0:00:00]} 93. Kb8 {[%emt 0:00:11]} Qd8+ {[%emt 0:00:00]} 94. Ka7 {[%emt 0:00:05]} Kc6 {[%emt 0:02:00]} 95. Rb7 {[%emt 0:00:11]} Qd4+ {[%emt 0:00:30]} 96. Kb8 {[%emt 0:00:13]} Qd5 {[%emt 0:00:00]} 97. Ka7 {[%emt 0:00:08]} Qd8 {[%emt 0:00:00]} 98. Rb1 {[%emt 0:04:53]} Qd7+ {[%emt 0:00:00]} 99. Ka8 {[%emt 0:00:00]} Qd8+ {[%emt 0:00:00]} 100. Ka7 {[%emt 0:00:00]} Qe7+ {[%emt 0:00:00]} 101. Kb8 {[%emt 0:01:30]} Qf8+ {[%emt 0:00:00]} 102. Ka7 {[%emt 0:00:00]} Qf7+ {[%emt 0:00:00]} 103. Kb8 {[%emt 0:00:00]} Qg8+ {[%emt 0:00:00]} 104. Ka7 {[%emt 0:00:00]} Qh7+ {[%emt 0:00:00] What a fight!  Weighted Error Value: White=0.43/Black=0.46} 0-1